bitfinex/quotes_ETHUSD_20260219
["timestamp","ask_amount","ask_price","bid_price","bid_amount"]
[1771487140615,0.0011,1984.6,1984.3,1.25989013]
[1771487141231,0.0011,1984.6,1984.3,0.47473189]
[1771487141730,0.0011,1984.5,1984.3,0.47473189]
[1771487143347,0.0011,1984.5,1984.3,1.73460545]
[1771487143825,0.0011,1984.5,1984.3,1.25987356]
[1771487144037,0.0011,1984.5,1984.0,0.001]
[1771487144038,5.49058477,1984.4,1984.0,0.001]
[1771487144240,0.47115553,1984.5,1984.0,1.26107847]
[1771487144241,0.0011,1984.5,1984.0,1.26107847]
[1771487144534,0.0011,1984.5,1984.0,1.73581036]
[1771487145501,0.8511,1984.5,1984.1,0.47473189]
[1771487146935,0.8511,1984.5,1984.0,1.26107847]
[1771487147124,1.32115553,1984.5,1984.0,1.26107847]
[1771487147442,1.32115553,1984.5,1984.0,0.001]
[1771487147443,5.49058477,1984.4,1984.0,0.001]
[1771487147620,6.75044618,1984.4,1984.0,0.001]
[1771487147820,6.36027796,1984.5,1984.0,0.001]
[1771487147821,2.58094031,1984.5,1984.0,0.001]
[1771487148639,2.58094031,1984.5,1984.0,0.47573189]
[1771487148640,0.8511,1984.5,1984.0,0.47573189]
[1771487149038,2.11086924,1984.5,1984.0,0.47573189]
[1771487149544,2.58092477,1984.5,1984.0,0.001]
[1771487149712,0.8511,1984.5,1984.0,0.47573189]
[1771487151542,2.11086847,1984.5,1984.0,0.001]
[1771487151847,2.580924,1984.5,1984.0,0.001]
[1771487153147,2.580924,1984.5,1984.1,0.001]
[1771487153451,0.0011,1984.4,1984.1,0.001]
[1771487153654,0.0011,1984.4,1984.1,1.73574098]
[1771487153950,0.0011,1984.4,1984.1,0.47573189]
[1771487154318,0.0011,1984.4,1984.1,0.001]
[1771487158040,0.0011,1984.4,1984.1,0.47573189]
[1771487160027,0.0011,1984.4,1984.3,0.49196233]
[1771487162030,0.0011,1984.4,1984.3,1.75185246]
[1771487162626,0.0011,1984.4,1984.3,0.49196233]
[1771487162834,0.0011,1984.4,1984.3,1.75185246]
[1771487167679,0.0011,1984.7,1984.4,0.4821987]
[1771487169376,0.0011,1984.7,1984.5,1.25976316]
[1771487170078,0.0011,1984.7,1984.5,1.74196186]
[1771487171472,0.0011,1984.7,1984.6,0.4821987]
[1771487171660,0.0011,1985.0,1984.6,0.4821987]
[1771487171860,0.0011,1985.1,1984.7,0.4821987]
[1771487173477,0.0011,1985.1,1984.9,0.4821987]
[1771487175964,0.0011,1985.1,1984.9,1.74169336]
[1771487178185,0.0011,1985.0,1984.9,1.74169336]
[1771487179457,0.0011,1985.1,1985.0,0.4821987]
[1771487180680,0.0011,1985.1,1984.8,0.4821987]
[1771487181449,0.0011,1985.3,1984.9,0.4821987]
[1771487182780,0.0011,1985.3,1985.1,0.4821987]
[1771487183480,0.0011,1985.3,1985.0,1.25944584]
[1771487183654,0.0011,1985.3,1985.0,1.74164454]
[1771487187287,0.0011,1985.3,1985.1,0.4821987]
[1771487189986,0.0011,1985.3,1985.2,1.25931896]
[1771487195898,0.0011,1985.5,1985.2,1.25931896]
[1771487197693,0.0011,1985.5,1985.1,5.03743349]
[1771487197993,0.0011,1985.5,1985.1,5.52167468]
[1771487199601,0.49842256,1985.5,1985.0,1.25944584]
[1771487200170,1.26025746,1985.5,1985.0,1.25944584]
[1771487200371,0.49732256,1985.4,1985.0,1.25944584]
[1771487200569,0.49732256,1985.4,1984.9,2.48645843]
[1771487200985,0.49732256,1985.4,1984.9,1.26045843]
[1771487201267,0.49732256,1985.4,1984.9,0.001]
[1771487202389,0.49732256,1985.3,1984.9,0.001]
[1771487202782,0.49732256,1985.2,1984.9,0.001]
[1771487202982,0.49732256,1985.2,1985.1,0.001]
[1771487204373,0.841,1985.3,1985.1,0.001]
[1771487204772,1.33832256,1985.3,1985.1,0.001]
[1771487205290,2.59760172,1985.3,1985.1,0.001]
[1771487205597,0.49732256,1985.2,1984.9,0.001]
[1771487207005,0.49732256,1985.1,1984.9,0.001]
[1771487210504,0.49732256,1985.0,1984.6,0.001]
[1771487210806,1.34132256,1984.9,1984.6,0.001]
[1771487211029,2.60088498,1984.9,1984.6,0.001]
[1771487212209,0.49732256,1984.8,1984.6,0.001]
[1771487212408,0.49732256,1984.6,1984.3,0.001]
[1771487212609,0.845,1984.5,1984.3,0.001]
[1771487215897,0.845,1984.5,1984.4,0.001]
[1771487216097,0.846,1984.6,1984.4,0.001]
[1771487219890,2.10570562,1984.6,1984.4,0.001]
[1771487220218,0.4650555,1984.5,1984.2,0.001]
[1771487220408,0.4650555,1984.4,1984.0,0.001]
[1771487220611,0.845,1984.5,1984.0,0.001]
[1771487220836,0.845,1984.5,1984.0,0.4754733]
[1771487222120,0.846,1984.5,1984.0,0.4754733]
[1771487222295,0.4650555,1984.4,1984.0,0.001]
[1771487222502,1.25989013,1984.3,1984.0,0.001]
[1771487223133,0.4650555,1984.2,1984.0,0.001]
[1771487223336,1.72494563,1984.3,1984.0,0.001]
[1771487223644,2.57086757,1984.5,1984.0,0.001]
[1771487223798,0.4650555,1984.4,1984.0,0.001]
[1771487225437,1.25984802,1984.4,1984.0,0.001]
[1771487225645,0.847,1984.3,1984.0,0.001]
[1771487225950,0.848,1984.5,1984.0,0.4754733]
[1771487226706,1.26072536,1984.8,1984.0,0.4754733]
[1771487226938,0.848,1984.7,1984.2,0.4744733]
[1771487227835,2.10765137,1984.7,1984.2,1.73442036]
[1771487228457,2.10765137,1984.7,1984.2,0.4744733]
[1771487231180,0.848,1984.7,1984.2,1.73441847]
[1771487231338,2.10764508,1984.7,1984.2,1.73441847]
[1771487231528,2.10764508,1984.7,1984.2,0.4744733]
[1771487233987,2.10764508,1984.7,1984.2,1.73441838]
[1771487234349,2.10764508,1984.7,1984.2,0.4744733]
[1771487234688,2.10764508,1984.7,1984.1,1.26097989]
[1771487234689,2.57270058,1984.7,1984.1,1.26097989]
[1771487234902,0.848,1984.7,1984.2,0.4744733]
[1771487235465,0.849,1984.7,1984.2,0.4744733]
[1771487235694,0.849,1984.7,1984.2,1.73436634]
[1771487236464,0.849,1984.7,1984.2,1.25989304]
[1771487236670,0.849,1984.7,1984.3,0.4744733]
[1771487238600,0.849,1984.7,1984.4,1.73429994]
[1771487238975,0.8501,1984.8,1984.4,0.4744733]
[1771487239499,0.0011,1984.6,1984.4,0.4744733]
[1771487240086,0.0011,1984.6,1984.2,0.4744733]
[1771487240274,0.4661555,1984.6,1984.1,0.001]
[1771487240883,1.72589568,1984.6,1984.1,0.001]
[1771487243678,0.4661555,1984.6,1984.1,0.001]
[1771487244297,0.4650555,1984.5,1984.1,0.001]
[1771487244469,1.3160555,1984.4,1984.1,0.001]
[1771487244669,0.4650555,1984.3,1984.1,0.001]
[1771487244874,5.9596241,1984.3,1983.9,0.001]
[1771487245074,0.4650555,1984.2,1983.9,0.001]
[1771487245489,1.72504633,1984.2,1983.9,0.001]
[1771487245889,0.4650555,1984.1,1983.9,0.001]
[1771487246091,0.851,1984.0,1983.6,0.001]
[1771487246808,1.3160555,1984.0,1983.6,0.001]
[1771487251821,2.57617268,1984.0,1983.7,0.001]
[1771487252919,0.48396412,1983.9,1983.7,0.001]
[1771487253813,1.26019655,1983.9,1983.7,0.001]
[1771487254887,2.59510007,1984.0,1983.7,0.001]
[1771487260141,2.11113595,1984.0,1983.7,0.001]
[1771487261139,2.59510007,1984.0,1983.7,0.001]
[1771487261341,0.48396412,1983.9,1983.7,0.001]
[1771487262232,0.48396412,1983.9,1983.6,0.001]
[1771487262630,5.97853272,1983.9,1983.6,0.001]
[1771487262802,5.97853272,1983.9,1983.5,0.001]
[1771487262998,0.48396412,1983.8,1983.5,0.001]
[1771487263235,0.861,1983.7,1983.5,0.001]
[1771487268644,0.0011,1983.9,1983.5,0.46969427]
[1771487268945,0.864,1983.7,1983.5,0.46969427]
[1771487269730,0.864,1983.7,1983.5,0.001]
[1771487270134,6.75581612,1983.9,1983.5,0.46969427]
[1771487270317,0.864,1983.8,1983.5,0.46969427]
[1771487271057,0.0011,1984.0,1983.6,0.46869427]
[1771487271247,0.8651,1984.0,1983.6,0.46869427]
[1771487271626,0.0011,1984.0,1983.6,0.46869427]
[1771487273567,0.0011,1983.9,1983.6,0.46869427]
[1771487275459,0.0022,1984.0,1983.6,0.46869427]
[1771487275460,0.0011,1984.0,1983.6,0.46869427]
[1771487275749,0.0011,1983.9,1983.6,0.46869427]
[1771487276860,0.0011,1983.9,1983.5,1.26138583]
[1771487277075,0.0011,1983.9,1983.5,1.73009214]
[1771487277383,0.0011,1983.9,1983.7,0.001]
[1771487277541,0.0022,1983.9,1983.7,0.001]
[1771487280471,0.0011,1983.8,1983.7,0.001]
[1771487280876,0.0011,1983.8,1983.7,0.48809863]
[1771487281059,0.8681,1983.9,1983.7,0.48809863]
[1771487281259,0.8692,1983.9,1983.7,0.48809863]
[1771487281966,0.8681,1983.9,1983.7,0.48809863]
[1771487282479,0.0011,1983.9,1983.7,1.7483426]
[1771487282972,0.0011,1983.9,1983.8,0.48709863]
[1771487284893,0.0011,1983.9,1983.8,1.74730631]
[1771487285785,0.0011,1983.9,1983.7,1.26122431]
[1771487286702,0.0011,1983.9,1983.7,1.74832294]
[1771487290084,0.0011,1983.9,1983.7,1.26122431]
[1771487291014,0.0022,1983.9,1983.7,1.26122431]
[1771487292307,0.0022,1983.9,1983.7,1.74832294]
[1771487294909,0.0011,1984.0,1983.7,1.74832294]
[1771487297502,0.0011,1984.0,1983.7,1.26122431]
[1771487300426,0.0011,1984.0,1983.8,0.001]
[1771487300624,0.0011,1983.9,1983.8,0.001]
[1771487304142,0.0011,1984.2,1983.8,0.48809863]
[1771487305032,0.0011,1984.2,1983.8,0.001]
[1771487305327,0.0011,1984.2,1983.8,0.48809863]
[1771487305707,0.0011,1984.2,1983.9,1.26014416]
[1771487312140,0.0011,1984.2,1983.9,1.26114416]
[1771487312340,0.0011,1984.1,1983.9,1.26114416]
[1771487313620,0.0011,1984.1,1983.9,0.001]
[1771487321153,0.0011,1984.1,1983.9,0.47678465]
[1771487324358,0.8611,1984.4,1984.0,1.73586529]
[1771487324558,0.8611,1984.4,1984.0,1.73686529]
[1771487324559,0.0011,1984.4,1984.0,1.73686529]
[1771487325029,0.0011,1984.3,1984.0,1.73686529]
[1771487327741,0.0011,1984.3,1984.0,0.001]
[1771487327945,0.0011,1984.3,1984.0,1.26105994]
[1771487331232,0.0011,1984.3,1984.0,0.001]
[1771487336175,0.0011,1984.3,1983.7,11.01305766]
[1771487336176,0.0011,1984.3,1983.7,7.22599712]
[1771487336967,0.0011,1984.3,1983.7,6.7554177]
[1771487337167,0.0011,1984.3,1983.8,0.47578465]
[1771487337370,0.0011,1984.3,1984.1,0.001]
[1771487337574,0.0011,1984.2,1984.1,0.001]
[1771487352693,1.74113488,1984.4,1984.1,0.001]
[1771487352694,0.0011,1984.4,1984.2,0.46382715]
[1771487352889,1.26048479,1985.1,1984.6,0.46382715]
[1771487353065,1.26048479,1985.1,1984.2,0.46382715]
[1771487353066,0.0011,1985.0,1984.2,0.46382715]
[1771487353266,0.0011,1985.0,1984.3,0.46382715]
[1771487353267,0.48125448,1985.0,1984.3,0.46382715]
[1771487354572,0.48125448,1985.0,1984.3,0.40382715]
[1771487354773,0.48015448,1984.6,1984.1,0.001]
[1771487354979,0.859,1984.5,1984.1,0.001]
[1771487360003,0.8601,1984.5,1984.1,0.001]
[1771487361080,0.0011,1984.4,1984.1,0.001]
[1771487364909,0.0022,1984.4,1984.1,0.001]
[1771487365482,0.0011,1984.4,1984.1,0.001]
[1771487370007,0.0022,1984.4,1984.1,0.001]
[1771487371910,0.0011,1984.4,1984.1,0.001]
[1771487373111,0.0011,1984.4,1984.2,0.001]
[1771487373612,0.0011,1984.3,1984.2,0.001]
[1771487377113,0.0011,1984.4,1984.2,0.001]
[1771487377313,0.0011,1984.3,1984.2,0.001]
[1771487383526,0.0011,1984.3,1984.0,0.001]
[1771487383527,0.46827909,1984.3,1984.0,0.001]
[1771487385429,1.26096033,1984.4,1984.0,0.001]
[1771487385747,0.0011,1984.7,1984.2,5.95938175]
[1771487386015,0.861,1984.6,1984.2,5.95938175]
[1771487386219,0.0011,1984.3,1984.2,5.95938175]
[1771487386414,0.861,1984.6,1984.2,5.49519837]
[1771487387197,1.7290238,1984.7,1984.2,5.49519837]
[1771487387504,0.861,1984.6,1984.2,5.49519837]
[1771487389122,0.8621,1984.7,1984.3,0.46418338]
[1771487390231,2.12175009,1984.7,1984.2,5.49519837]
[1771487393024,2.12175009,1984.7,1984.2,5.95938175]
[1771487393222,2.12175009,1984.7,1984.3,0.46418338]
[1771487393438,0.8621,1984.7,1984.3,0.46418338]
[1771487393750,2.12173928,1984.7,1984.3,0.46418338]
[1771487395015,2.12273928,1984.7,1984.3,0.46418338]
[1771487395216,2.12273928,1984.7,1984.2,5.49519837]
[1771487395545,0.8631,1984.7,1984.3,0.46418338]
[1771487395750,2.12273999,1984.7,1984.3,0.46418338]
[1771487396845,0.8631,1984.7,1984.3,0.46418338]
[1771487397352,2.12273952,1984.7,1984.3,0.46418338]
[1771487398253,2.12273952,1984.7,1984.3,0.46518338]
[1771487398453,0.0011,1984.6,1984.3,0.46518338]
[1771487399460,0.46937909,1984.6,1984.3,0.001]
[1771487400167,0.863,1984.7,1984.3,0.001]
[1771487400358,0.48604862,1984.6,1984.1,0.001]
[1771487403161,0.48604862,1984.4,1983.9,0.001]
[1771487403374,1.25976316,1984.5,1983.9,0.001]
[1771487403375,0.48604862,1984.2,1983.9,0.001]
[1771487405561,1.26001713,1984.1,1983.9,0.001]
[1771487410759,0.0011,1984.0,1983.9,0.001]
[1771487411185,0.0011,1984.0,1983.8,0.001]
[1771487412367,0.0011,1984.0,1983.5,0.001]
[1771487412368,0.865,1983.9,1983.5,0.001]
[1771487413867,1.26020768,1983.8,1983.5,0.001]
[1771487414078,2.12519354,1983.9,1983.5,0.001]
[1771487415194,0.0011,1984.1,1983.7,0.49991188]
[1771487415387,0.0011,1984.3,1984.0,5.99260895]
[1771487415388,0.6601,1984.3,1984.0,5.99260895]
[1771487418208,0.865,1984.6,1984.2,5.99260895]
[1771487418421,0.865,1984.6,1984.1,0.49991188]
[1771487420605,1.25963621,1984.8,1984.1,0.49991188]
[1771487420901,0.865,1984.6,1984.1,0.49991188]
[1771487421598,1.35104862,1984.6,1984.0,5.49269707]
[1771487421892,1.35104862,1984.6,1984.0,5.99260895]
[1771487422794,2.61079491,1984.6,1984.0,5.99360895]
[1771487422983,0.0011,1984.5,1984.0,5.99360895]
[1771487424102,0.0011,1984.5,1984.1,0.49991188]
[1771487426080,0.0011,1984.5,1984.0,0.001]
[1771487426081,0.48714862,1984.5,1984.0,0.001]
[1771487428110,1.25982664,1984.4,1984.0,0.001]
[1771487431608,1.75088987,1984.4,1984.0,0.001]
[1771487432188,0.49106323,1984.3,1984.0,0.001]
[1771487432595,0.866,1984.2,1984.0,0.001]
[1771487434615,2.12595579,1984.2,1984.0,0.001]
[1771487434791,0.866,1984.2,1984.0,0.001]
[1771487435691,0.866,1984.2,1984.1,0.001]
[1771487435893,2.12595363,1984.2,1984.1,0.001]
[1771487436218,2.61701686,1984.2,1983.9,0.001]
[1771487437710,0.49106323,1984.1,1983.9,0.001]
[1771487438112,0.49106323,1984.1,1983.8,0.001]
[1771487441331,1.75111919,1984.1,1983.8,0.001]
[1771487442600,0.49106323,1984.1,1983.8,0.001]
[1771487442799,1.75109629,1984.1,1983.8,0.001]
[1771487443933,1.26003306,1984.1,1983.8,0.001]
[1771487447534,1.26003306,1984.1,1983.9,0.001]
[1771487447730,1.26113306,1984.1,1983.9,0.001]
[1771487449037,0.0011,1984.2,1983.9,0.47790707]
[1771487449337,0.0011,1984.4,1984.0,5.96960414]
[1771487449644,0.8731,1984.6,1984.3,0.47690707]
[1771487449859,2.13280885,1984.6,1983.9,1.73802167]
[1771487450042,2.62387208,1984.6,1983.9,0.47790707]
[1771487450940,2.62386634,1984.6,1983.9,0.47790707]
[1771487453149,2.13280311,1984.6,1983.9,0.47790707]
[1771487453317,2.13281341,1984.6,1984.0,5.49269707]
[1771487453646,0.0011,1984.6,1984.2,5.96960414]
[1771487453845,0.872,1984.5,1984.2,5.96960414]
[1771487454015,0.872,1984.5,1984.2,0.47690707]
[1771487454641,1.26080759,1984.6,1984.2,0.47690707]
[1771487454827,0.872,1984.5,1984.2,0.47690707]
[1771487455753,0.872,1984.5,1984.0,5.96960414]
[1771487457140,2.62285243,1984.5,1983.9,0.001]
[1771487457324,0.49106323,1984.4,1983.9,0.001]
[1771487458129,1.25989013,1984.3,1983.9,0.001]
[1771487460530,1.25989013,1984.3,1984.0,0.001]
[1771487461626,0.47983082,1984.2,1984.0,0.001]
[1771487461840,0.0011,1984.5,1984.0,0.4531118]
[1771487462026,0.8741,1984.5,1984.2,0.4521118]
[1771487462228,0.0011,1984.8,1984.5,0.4521118]
[1771487462429,0.0033,1984.8,1984.5,0.4521118]
[1771487462643,0.48203082,1984.7,1984.0,0.4531118]
[1771487464382,0.48203082,1984.7,1984.1,0.4521118]
[1771487464681,1.25969968,1984.6,1984.1,0.4521118]
[1771487466268,1.35503082,1984.5,1984.0,0.001]
[1771487466570,0.47983082,1984.4,1984.0,0.001]
[1771487466778,1.73969872,1984.4,1984.0,0.001]
[1771487467474,0.873,1984.6,1984.4,0.4521118]
[1771487467652,2.13367653,1984.8,1984.4,0.4521118]
[1771487467854,2.13367653,1984.8,1984.0,0.001]
[1771487467855,0.47983082,1984.7,1984.0,0.001]
[1771487468776,1.7395305,1984.6,1984.0,0.4531118]
[1771487472466,1.7395305,1984.6,1984.1,0.001]
[1771487472780,0.0011,1984.5,1984.1,0.001]
[1771487473584,0.0011,1984.6,1984.3,5.94710875]
[1771487474275,0.0011,1984.6,1984.3,0.4521118]
[1771487475650,0.0011,1984.6,1984.1,7.20808344]
[1771487476248,0.0011,1984.6,1984.2,0.4521118]
[1771487480988,0.0011,1984.6,1984.1,6.75597164]
[1771487481170,0.0011,1984.6,1984.1,7.20808344]
[1771487481368,0.48093082,1984.6,1984.1,0.001]
[1771487481778,0.47983082,1984.5,1984.1,0.001]
[1771487485276,0.47983082,1984.5,1984.2,0.001]
[1771487485478,0.48093082,1984.5,1984.2,0.001]
[1771487489587,1.74069704,1984.5,1984.2,0.001]
[1771487490086,0.47898806,1984.4,1984.2,0.001]
[1771487492463,1.73881667,1984.4,1984.2,0.001]
[1771487492668,0.47898806,1984.3,1984.2,0.001]
[1771487492870,0.47898806,1984.3,1984.0,0.001]
[1771487493904,1.73989645,1984.5,1984.0,0.001]
[1771487494266,0.48008806,1984.5,1984.0,0.001]
[1771487494466,0.47898806,1984.4,1984.0,0.001]
[1771487495482,1.73883662,1984.4,1984.0,0.001]
[1771487496903,1.73883662,1984.4,1984.2,0.001]
[1771487497072,2.60983662,1984.4,1984.2,0.001]
[1771487504511,1.34998806,1984.4,1984.2,0.001]
[1771487504809,2.60981845,1984.4,1984.2,0.001]
[1771487505313,0.871,1984.4,1984.2,0.001]
[1771487508715,0.0011,1984.3,1984.2,0.001]
[1771487512131,0.47898806,1984.2,1983.9,0.001]
[1771487512316,0.47898806,1984.2,1983.6,0.001]
[1771487512317,0.47898806,1984.0,1983.6,0.001]
[1771487512616,5.97398501,1983.9,1983.5,0.001]
[1771487512817,0.881,1983.8,1983.5,0.001]
[1771487513421,5.97508501,1984.3,1983.5,0.45166954]
[1771487513619,5.97508501,1984.3,1983.6,0.45066954]
[1771487513620,0.881,1984.2,1983.6,0.45066954]
[1771487513819,1.35998806,1984.2,1983.6,0.45066954]
[1771487514007,1.26008064,1984.0,1983.5,0.001]
[1771487515030,0.882,1984.0,1983.5,0.45166954]
[1771487518519,0.883,1984.0,1983.5,0.45166954]
[1771487520522,0.883,1984.0,1983.6,0.45669873]
[1771487525124,0.883,1984.0,1983.6,0.001]
[1771487525327,0.49226546,1983.9,1983.5,0.001]
[1771487525638,5.98952428,1983.8,1983.3,0.001]
[1771487525794,0.885,1983.7,1983.3,0.001]
[1771487526217,1.37726546,1983.7,1983.3,0.001]
[1771487532240,0.885,1983.7,1983.3,0.001]
[1771487532543,1.2601275,1984.0,1983.4,0.45669873]
[1771487532721,0.0011,1983.6,1983.4,0.45669873]
[1771487534028,0.0011,1983.6,1983.4,0.001]
[1771487537520,0.49336546,1983.6,1983.4,0.001]
[1771487538719,1.75370426,1983.6,1983.4,0.001]
[1771487538924,1.75370426,1983.6,1983.1,0.001]
[1771487538925,0.49226546,1983.4,1983.1,0.001]
[1771487539154,5.98952428,1983.4,1983.1,0.001]
[1771487539349,2.64194552,1983.3,1983.1,0.001]
[1771487539951,3.13421098,1983.3,1983.1,0.001]
[1771487540117,0.49226546,1983.3,1983.1,0.001]
[1771487541848,1.75279127,1983.3,1983.1,0.001]
[1771487542153,0.49226546,1983.3,1983.1,0.001]
[1771487542827,0.89,1983.2,1983.1,0.001]
[1771487543729,1.26143682,1983.6,1983.1,0.45669873]
[1771487543924,3.5502488,1983.5,1983.1,0.001]
[1771487544121,2.6592488,1983.4,1983.1,0.001]
[1771487545239,2.6592488,1983.4,1983.2,0.001]
[1771487545948,0.0011,1983.3,1983.2,0.001]
[1771487563400,2.6603488,1983.3,1983.2,0.001]
[1771487563870,0.0011,1983.3,1983.2,0.001]
[1771487564071,2.6603488,1983.3,1983.2,0.001]
[1771487564266,0.0011,1983.3,1983.2,0.001]
[1771487564475,2.6603488,1983.3,1983.2,0.001]
[1771487564788,0.0011,1983.3,1983.2,0.001]
[1771487565085,2.6603488,1983.3,1983.2,0.001]
[1771487565463,0.0011,1983.3,1983.2,0.001]
[1771487565687,2.6603488,1983.3,1983.2,0.001]
[1771487566068,0.0011,1983.3,1983.2,0.001]
[1771487566394,2.6603488,1983.3,1983.2,0.001]
[1771487567880,3.14968163,1983.3,1983.2,0.001]
[1771487568068,4.41020701,1983.3,1983.2,0.001]
[1771487568273,4.41020701,1983.3,1983.0,0.001]
[1771487568476,2.6592488,1983.2,1983.0,0.001]
[1771487568665,2.6592488,1983.1,1983.0,0.001]
[1771487571994,3.14858163,1983.1,1983.0,0.001]
[1771487572695,0.48933283,1983.0,1982.6,0.01278316]
[1771487573085,1.38633283,1983.1,1982.6,0.01278316]
[1771487573397,2.66621597,1983.0,1982.6,0.01278316]
[1771487573585,1.38633283,1983.1,1982.6,0.01278316]
[1771487573895,2.66565839,1983.0,1982.6,0.01278316]
[1771487574063,1.38633283,1983.1,1982.6,0.01278316]
[1771487574268,2.66565897,1983.0,1982.6,0.01278316]
[1771487574468,1.38633283,1983.1,1982.6,0.01278316]
[1771487574695,2.66521851,1983.0,1982.6,0.01278316]
[1771487575001,1.38633283,1983.1,1982.6,0.01278316]
[1771487575295,2.66522014,1983.0,1982.6,0.01278316]
[1771487578675,2.64698902,1983.1,1982.6,0.01278316]
[1771487578875,2.66426335,1983.0,1982.6,0.01278316]
[1771487579075,1.38633283,1983.1,1982.5,7.09875241]
[1771487579301,2.66415988,1983.0,1982.5,7.09875241]
[1771487579503,1.38633283,1983.1,1982.5,7.09875241]
[1771487579802,2.66391897,1983.0,1982.5,1.71371043]
[1771487580102,2.64308948,1983.2,1982.6,0.46862266]
[1771487580299,2.66388909,1983.1,1982.6,0.46862266]
[1771487580505,2.66388909,1983.0,1982.6,0.46862266]
[1771487580807,2.64308948,1983.2,1982.6,0.46862266]
[1771487581100,3.14818482,1983.1,1982.5,7.22691051]
[1771487581302,2.66383146,1983.0,1982.5,7.22691051]
[1771487581898,2.66383146,1983.0,1982.6,0.001]
[1771487582277,2.66493146,1983.0,1982.6,0.001]
[1771487589703,0.48435336,1982.9,1982.6,0.001]
[1771487590817,0.48545336,1983.0,1982.6,0.001]
[1771487590991,2.66251589,1982.9,1982.6,0.001]
[1771487595721,2.66361589,1982.9,1982.6,0.001]
[1771487597901,3.14796925,1982.9,1982.6,0.001]
[1771487598102,0.48545336,1982.9,1982.6,0.001]
[1771487601125,2.66515473,1982.8,1982.6,0.001]
[1771487601326,0.48545336,1982.9,1982.6,0.001]
[1771487601622,2.66568513,1982.8,1982.6,0.001]
[1771487601825,0.0011,1982.9,1982.6,0.001]
[1771487604023,0.0011,1983.1,1982.7,0.46862266]
[1771487604225,2.66616354,1983.0,1982.7,0.46862266]
[1771487604428,0.0011,1983.1,1982.7,0.46862266]
[1771487606605,0.0011,1983.1,1982.8,1.26084325]
[1771487606827,0.0011,1983.5,1983.1,0.46862266]
[1771487607127,0.0011,1983.7,1983.4,5.50147521]
[1771487607331,0.0011,1983.7,1983.4,5.97009787]
[1771487607704,0.48435336,1983.6,1982.8,8.39394112]
[1771487607905,0.48435336,1983.6,1982.9,0.46862266]
[1771487608408,0.0011,1983.0,1982.9,0.46862266]
[1771487608610,0.48435336,1983.6,1982.9,0.46862266]
[1771487608810,0.0011,1983.1,1983.0,1.26071608]
[1771487609123,0.48435336,1983.5,1983.0,1.26071608]
[1771487609326,0.0011,1983.3,1983.0,1.26071608]
[1771487609514,0.0011,1983.3,1982.9,1.72935175]
[1771487610029,0.0011,1983.3,1982.9,1.26072909]
[1771487611634,0.0011,1983.3,1982.8,7.92528179]
[1771487611812,0.48409291,1983.3,1982.8,7.92528179]
[1771487616938,0.48409291,1983.3,1982.8,1.163]
[1771487617137,0.48299291,1983.2,1982.6,0.91]
[1771487617539,0.48299291,1983.2,1982.6,0.001]
[1771487618438,0.48299291,1983.2,1982.6,1.26196925]
[1771487618737,0.48299291,1983.2,1982.6,6.76344446]
[1771487621042,0.48299291,1983.2,1982.9,0.001]
[1771487621336,0.48409291,1983.2,1982.9,0.001]
[1771487621711,0.48299291,1983.1,1982.9,0.001]
[1771487626118,0.48299291,1983.0,1982.6,0.001]
[1771487626314,0.48299291,1983.0,1982.7,0.001]
[1771487627146,0.48299291,1983.0,1982.6,0.001]
[1771487627315,0.48299291,1983.0,1982.6,0.002]
[1771487627522,0.48299291,1983.0,1982.6,0.001]
[1771487629250,0.893,1983.1,1982.7,0.001]
[1771487629824,1.37599291,1983.1,1982.7,0.001]
[1771487630339,0.48299291,1983.1,1982.7,0.001]
[1771487630852,1.7436514,1983.1,1982.7,0.001]
[1771487631037,0.48299291,1983.0,1982.7,0.001]
[1771487631425,0.48299291,1983.0,1982.6,0.001]
[1771487631621,0.48299291,1983.0,1982.6,0.002]
[1771487632141,0.48299291,1983.0,1982.6,0.001]
[1771487632821,0.48299291,1982.8,1982.6,0.001]
[1771487633027,0.48299291,1982.7,1982.6,0.001]
[1771487637361,0.48299291,1982.7,1982.4,0.001]
[1771487637539,0.48299291,1982.7,1982.4,0.002]
[1771487640666,0.48299291,1982.7,1982.5,0.001]
[1771487640959,1.38099291,1982.7,1982.5,0.001]
[1771487642062,1.38099291,1982.7,1982.4,0.001]
[1771487642264,1.38099291,1982.7,1982.5,0.001]
[1771487644840,1.38099291,1982.7,1982.6,0.001]
[1771487652070,2.64189975,1982.7,1982.5,0.001]
[1771487652245,2.64189975,1982.7,1982.5,0.002]
[1771487652644,1.38099291,1982.7,1982.5,0.002]
[1771487653061,1.38099291,1982.7,1982.4,0.001]
[1771487653062,2.15891105,1982.7,1982.1,0.43347347]
[1771487653260,2.15891105,1982.7,1981.9,1.26139195]
[1771487653261,0.484117,1982.6,1981.9,1.75086542]
[1771487653962,1.74515104,1982.5,1981.9,1.75086542]
[1771487654271,0.484117,1982.5,1981.9,1.75086542]
[1771487654851,2.64307042,1982.7,1982.0,0.48947347]
[1771487656867,0.484117,1982.6,1982.0,0.48947347]
[1771487657262,0.484117,1982.6,1982.0,0.49047347]
[1771487657772,0.485217,1982.6,1982.0,0.49047347]
[1771487657992,0.485217,1982.6,1982.0,1.75182427]
[1771487658472,0.9031,1982.6,1982.1,0.48947347]
[1771487658977,0.0011,1982.6,1982.1,0.48947347]
[1771487660382,0.0011,1982.6,1982.1,1.75070145]
[1771487664308,0.0011,1982.6,1982.2,0.48947347]
[1771487665161,0.9011,1982.9,1982.1,6.76550377]
[1771487665162,0.0011,1982.9,1982.4,0.48947347]
[1771487665361,0.0011,1982.9,1982.5,1.75050751]
[1771487666771,0.0011,1982.9,1982.5,7.2547833]
[1771487666975,0.0011,1983.2,1982.8,0.48947347]
[1771487667473,0.0011,1983.2,1982.8,1.75027165]